Workbook

Sheet Introduction
B3: KSU-Own Combine
B5: An Excel spreadsheet to evaluate the economic costs of owning and operating a combine.
L8: Version- 6.30.16
B28: INSTRUCTIONS FOR THE USER:
B29: Be sure to "Enable Content" and "Enable Macros" for the spreadsheet to function correctly. This spreadsheet uses macros to print the three different pages, however printing can also be done manually by highlighting the desired range and using the menu print commands.
B31: In the "User input" tab all blue numbers are inputs and all black numbers are calculated from these inputs. Several input cells (i.e., blue number) have a red diamond in the upper right hand corner of the cell. By moving your mouse cursor over this diamond, a brief description of the input will be displayed on the screen.
B35: FOR MORE INFORMATION:
B36: With Questions contact: | G36: Originally Developed by:
B38: Rich Llewelyn | G38: Terry L. Kastens, Ph.D. | K38: Kevin C. Dhuyvetter, Ph.D.
B39: Extension Assistant | G39: Emeritus Agricultural Economist | K39: Former Agricultural Economist
B40: Kansas State University | G40: Kansas State University | K40: Kansas State University
B41: rvl@ksu.edu
B42: 785-532-1504
B44: Copyright 2016 AgManager.info, K-State Department of Agricultural Economics

Sheet User input
B2: User Input and related calculations section (blue shaded cells are inputs)
B4: Information pertaining to combine depreciation and repairs
J5: repair factors
B6: Combine class | G6: age | H6: 100 hrs | I6: age*100hrs | J6: RF1 | K6: RF2 | L6: useful life
B7: 1 | C7: JD 9670STS (spread 8r corn 30' rigid) | G7: -0.09371692293 | H7: -0.02817323696 | I7: 0.001520471055 | J7: 0.04 | K7: 2.1 | L7: 3000
B8: 2 | C8: JD 9770STS (spread 12r corn 36' draper) | G8: -0.0497772785 | H8: -0.03090735982 | I8: 0.0001512402393 | J8: 0.04 | K8: 2.1 | L8: 3000
B9: 3 | C9: AGCO R75 (spread 12r corn 36' draper) | G9: -0.05559474875 | H9: -0.01777950423 | I9: -0.0007780262636 | J9: 0.04 | K9: 2.1 | L9: 3000
B10: 4 | C10: Case-IH 2588 (spread 8r corn 30' rigid) | G10: -0.04709709893 | H10: -0.02506788912 | I10: -0.0006493293744 | J10: 0.04 | K10: 2.1 | L10: 3000
C11: Factors used in analysis => | F11: =IF($F13=1,C7,IF($F13=2,C8,IF($F13=3,C9,IF($F13=4,C10,IF($F13=5,#REF!,IF($F13=6,#REF!,"NA")))))) -> JD 9670STS (spread 8r corn 30' rigid) | G11: =IF($F13=1,G7,IF($F13=2,G8,IF($F13=3,G9,IF($F13=4,G10,IF($F13=5,#REF!,IF($F13=6,#REF!,"NA")))))) -> -0.09371692293 | H11: =IF($F13=1,H7,IF($F13=2,H8,IF($F13=3,H9,IF($F13=4,H10,IF($F13=5,#REF!,IF($F13=6,#REF!,"NA")))))) -> -0.02817323696 | I11: =IF($F13=1,I7,IF($F13=2,I8,IF($F13=3,I9,IF($F13=4,I10,IF($F13=5,#REF!,IF($F13=6,#REF!,"NA")))))) -> 0.001520471055 | J11: =IF($F13=1,J7,IF($F13=2,J8,IF($F13=3,J9,IF($F13=4,J10,IF($F13=5,#REF!,IF($F13=6,#REF!,"NA")))))) -> 0.04 | K11: =IF($F13=1,K7,IF($F13=2,K8,IF($F13=3,K9,IF($F13=4,K10,IF($F13=5,#REF!,IF($F13=6,#REF!,"NA")))))) -> 2.1 | L11: =IF($F13=1,L7,IF($F13=2,L8,IF($F13=3,L9,IF($F13=4,L10,IF($F13=5,#REF!,IF($F13=6,#REF!,"NA")))))) -> 3000
B13: Combine class (1-4) | F13: 1 | H13: Bank interest rate (enter as decimal) | L13: 0.05
B14: Combine age in years | F14: 0 | H14: Calculated after-tax discount rate | L14: =L13*(1-L15-L16) -> 0.03235
B15: Separator hours on combine | F15: 0 | H15: State + U.S. marginal income tax rate (decimal) | L15: 0.2
B16: Purchase price of combine w/o trade-in | F16: 275000 | H16: Self-employment tax (0 if corporation) | L16: 0.153
B17: Market price of combine | F17: =+F16 -> 275000 | H17: Section 179 Depreciation ($500,000 max) | L17: 0
B18: Cash downpayment | F18: 50000 | H18: =FIXED('User input'!F74*100,0)&"% bonus 1st-yr dep. On new equip. (yes=1, no=0)" -> 50% bonus 1st-yr dep. On new equip. (yes=1, no=0) | L18: 0
B19: Calculated new equivalent price (NEP) | F19: =F17/EXP(G11*F14+H11*F15/100+I11*F14*F15/100) -> 275000 | H19: Calculated bonus yr-1 depreciation | L19: =IF(AND(F14=0,L18=1),(F16-MIN(F16,MIN('User input'!F73,L17)))*'User input'!F74,0) -> 0
H20: Calculated net $ amount to depreciate | L20: =F16-MIN(F16,MIN('User input'!F73,L17))-L19 -> 275000
B21: No. of seasons (years) before trade (maximum 20) | F21: 5 | H21: =IF(L17>'User input'!F73,"Section-179 exceeds maximum allowed!",IF(AND(F14>0,L18=1),"Bonus 1st-yr depreciation is NOT available!","")) -> 
B22: Hours (separator) combine will be used annually | F22: 250 | H22: 1st year MACRS depreciation rate | L22: 0.1429
B23: Acres per separator hour | F23: 12 | H23: 2nd year MACRS depreciation rate | L23: 0.2449
B24: Labor | H24: 3rd year MACRS depreciation rate | L24: 0.1749
B25: Total labor hours per combine engine hour | F25: 1.25 | H25: 4th year MACRS depreciation rate | L25: 0.1249
B26: Labor cost per hour | F26: 15 | H26: 5th year MACRS depreciation rate | L26: 0.0893
B27: Fuel and lubrication | H27: 6th year MACRS depreciation rate | L27: 0.0892
B28: Combine fuel consumption per engine hour (gallons) | F28: 11.5 | H28: 7th year MACRS depreciation rate | L28: 0.0893
B29: Average fuel price ($/gallon) | F29: 2.25 | H29: 8th year MACRS depreciation rate | L29: 0.0446
B30: Oil and lubrication percent of fuel cost | F30: 0.1 | H30: Calculated error check of depreciation rates | L30: =SUM(L22:L29) -> 1 | M30: =IF(OR(L30>1.01,L30<0.99),"<= Error!"," ") -> 
B31: Repairs and maintenance | H31: =IF(OR(L30>1.01,L30<0.99),"Total depreciation rate should add to 100%!"," ") -> 
B32: NEP adjustment to approximate list price | F32: 1.15 | H32: Calculated after-tax NPVc from TT section | L32: ='Time and Tax (TT)'!U4 -> 121453.2976
B33: Repair adjustment factor (0.8 to 1.2, usually 1) (RAF) | F33: 1 | H33: Calculated after-tax amortized NPV from TT | L33: =F37*L32 -> 26698.08245
B34: Repairs per hour after useful life | F34: =(K11*J11*F19*F32*(L11/1000)^(K11-1))/1000 -> 88.94943635 | H34: Calculated pre-tax amortized NPV from TT | L34: =L33/(1-L15-L16) -> 41264.4242
B35: Tax, insurance, & shelter (TIS - % of value, decimal) | F35: 0.015 | H35: Prorated to opportunity interest | L35: =L34*'Time and Tax (TT)'!G7 -> 9326.815061
H36: Prorated to market depreciation | L36: =L34*'Time and Tax (TT)'!H7 -> 25631.5035
B37: Calculated after-tax amortization factor | F37: =L14/(1-(1+L14)^-F21) -> 0.2198217997 | H37: Prorated to repairs | L37: =L34*'Time and Tax (TT)'!Q7 -> 3508.061119
B38: Calculated 1-year after-tax discount factor | F38: =1/(1+L14) -> 0.9686637284 | H38: Prorated to tax, insurance, & shelter (TIS) | L38: =L34*'Time and Tax (TT)'!O7 -> 2798.044518
B41: Note: If user knows something about expected trade differences across time for a particular combine, he/she
B42: can modify the embedded market depreciation formulas -- this is done at the bottom of the Time and Tax (TT) page.
B72: Year
B73: Section 179 allowance | F73: 500000
B74: Bonus depreciation | F74: 0.5
B76: Market ding when trade | F76: 0
B77: Separator hours/engine hours | F77: 0.7

Sheet Time and Tax (TT)
B2: Time and tax (TT) section
T4: After-tax net present value of costs (NPVc) => | U4: =SUM(U12:U32) -> 121453.2976
F6: after-tax NPV => | G6: =SUMPRODUCT($C12:$C32,G12:G32)*(1-'User input'!$L15-'User input'!$L16) -> 30775.1127 | H6: =SUMPRODUCT($C12:$C32,H12:H32)*(1-'User input'!$L15-'User input'!$L16) -> 84574.68102 | N6: after-tax NPV => | O6: =SUMPRODUCT($C12:$C32,O12:O32)*(1-'User input'!$L15-'User input'!$L16) -> 9232.533809 | Q6: =SUMPRODUCT($C12:$C32,Q12:Q32)*(1-'User input'!$L15-'User input'!$L16) -> 11575.33151
F7: % of total => | G7: =G6/($G6+$H6+$O6+$Q6) -> 0.2260255715 | H7: =H6/($G6+$H6+$O6+$Q6) -> 0.6211525787 | N7: % of total => | O7: =O6/($G6+$H6+$O6+$Q6) -> 0.06780767145 | Q7: =Q6/($G6+$H6+$O6+$Q6) -> 0.08501417837
K8: EOY*
C9: after-tax | D9: EOY* | E9: EOY* | F9: est. | I9: tax | J9: Sec. 179 | K9: or year | R9: =SUM(R12:R32)/'User input'!F21 -> 16.16931195
C10: discount | D10: machine | E10: machine | F10: machine | G10: opp. | H10: market | I10: deprec. | J10: and tax | K10: of sale | L10: loan | M10: loan | N10: downpmt | P10: accum. | Q10: annual | R10: repairs | S10: tax | T10: net | U10: discounted
B11: year | C11: factor | D11: age | E11: hours | F11: value | G11: interest | H11: deprec. | I11: rate | J11: deprec. | K11: tax basis | L11: interest | M11: principal | N11: or sale | O11: TIS** | P11: repairs | Q11: repairs | R11: per hour | S11: savings | T11: cash out | U11: cash out
B12: 0 | C12: =IF(B12>'User input'!F$21,"",'User input'!F$38^B12) -> 1 | D12: =IF(B12>'User input'!F$21,"",IF(B12=0,'User input'!F$14,D11+1)) -> 0 | E12: =IF(B12>'User input'!F$21,"",IF(B12=0,'User input'!F$15,E11+'User input'!F$22)) -> 0 | F12: =IF(B12>'User input'!F$21,"",IF(F$57=1,F60,IF(F$57=2,H60,"Error"))) -> 275000 | G12: =IF(B12>'User input'!F$21,"",IF(B12>0,F11*'User input'!L$13,0)) -> 0 | H12: =IF(B12>'User input'!F$21,"",IF(B12>0,F11-F12,0)) -> 0 | I12: =IF(B12>'User input'!F$21,"",IF(B12>7,0,IF(SUM(I$11:I11)<1,IF(B12='User input'!F$21,'User input'!L22/2,'User input'!L22),0))) -> 0.1429 | J12: =IF(B12>'User input'!F$21,"",IF(B12=0,MIN('User input'!F$16,'User input'!L$17)+'User input'!L$19+'User input'!L$20*I12,'User input'!L$20*I12)) -> 39297.5 | K12: =IF(B12>'User input'!F$21,"",IF(B12=0,'User input'!F$16-J12,K11-J12)) -> 235702.5 | L12: =IF(B12>'User input'!F$21,"",IF(B12>0,('User input'!F$16-'User input'!F$18)*'User input'!L$13,0)) -> 0 | M12: =IF(B12>'User input'!F$21,"",IF(B12='User input'!F$21,'User input'!F$16-'User input'!F$18,0)) -> 0 | N12: =IF(B12>'User input'!F$21,"",IF(B12=0,'User input'!F$18,IF(B12='User input'!F$21,-F12,0))) -> 50000 | O12: =IF(B12>'User input'!F$21,"",IF(B12>0,'User input'!F$35*F11,0)) -> 0 | P12: =IF(B12>'User input'!F$21,"",(IF(E12>'User input'!L$11,(E12-'User input'!L$11)*'User input'!F$34+'User input'!J$11*'User input'!F$19*'User input'!F$32*('User input'!L$11/1000)^'User input'!K$11,'User input'!J$11*'User input'!F$19*'User input'!F$32*(E12/1000)^'User input'!K$11))*'User input'!F$33) -> 0 | Q12: =IF(B12>'User input'!F$21,"",IF(B12>0,(P12-P11),0)) -> 0 | R12: =IF(B12>'User input'!F$21,"",Q12/'User input'!F$22) -> 0 | S12: =IF(B12>'User input'!F$21,"",(J12+L12+O12+Q12)*('User input'!L$15+'User input'!L$16)-IF(B12='User input'!F$21,(F12-K12)*'User input'!L$15,0)) -> 13872.0175 | T12: =IF(B12>'User input'!F$21,"",L12+M12+N12+O12+Q12-S12) -> 36127.9825 | U12: =IF(B12>'User input'!F$21,"",C12*T12) -> 36127.9825
B13: =IF(B12>='User input'!F$21,"",B12+1) -> 1 | C13: =IF(B13>'User input'!F$21,"",'User input'!F$38^B13) -> 0.9686637284 | D13: =IF(B13>'User input'!F$21,"",IF(B13=0,'User input'!F$14,D12+1)) -> 1 | E13: =IF(B13>'User input'!F$21,"",IF(B13=0,'User input'!F$15,E12+'User input'!F$22)) -> 250 | F13: =IF(B13>'User input'!F$21,"",IF(F$57=1,F61,IF(F$57=2,H61,"Error"))) -> 234257.8098 | G13: =IF(B13>'User input'!F$21,"",IF(B13>0,F12*'User input'!L$13,0)) -> 13750 | H13: =IF(B13>'User input'!F$21,"",IF(B13>0,F12-F13,0)) -> 40742.19025 | I13: =IF(B13>'User input'!F$21,"",IF(B13>7,0,IF(SUM(I$11:I12)<1,IF(B13='User input'!F$21,'User input'!L23/2,'User input'!L23),0))) -> 0.2449 | J13: =IF(B13>'User input'!F$21,"",IF(B13=0,MIN('User input'!F$16,'User input'!L$17)+'User input'!L$19+'User input'!L$20*I13,'User input'!L$20*I13)) -> 67347.5 | K13: =IF(B13>'User input'!F$21,"",IF(B13=0,'User input'!F$16-J13,K12-J13)) -> 168355 | L13: =IF(B13>'User input'!F$21,"",IF(B13>0,('User input'!F$16-'User input'!F$18)*'User input'!L$13,0)) -> 11250 | M13: =IF(B13>'User input'!F$21,"",IF(B13='User input'!F$21,'User input'!F$16-'User input'!F$18,0)) -> 0 | N13: =IF(B13>'User input'!F$21,"",IF(B13=0,'User input'!F$18,IF(B13='User input'!F$21,-F13,0))) -> 0 | O13: =IF(B13>'User input'!F$21,"",IF(B13>0,'User input'!F$35*F12,0)) -> 4125 | P13: =IF(B13>'User input'!F$21,"",(IF(E13>'User input'!L$11,(E13-'User input'!L$11)*'User input'!F$34+'User input'!J$11*'User input'!F$19*'User input'!F$32*('User input'!L$11/1000)^'User input'!K$11,'User input'!J$11*'User input'!F$19*'User input'!F$32*(E13/1000)^'User input'!K$11))*'User input'!F$33) -> 688.2790391 | Q13: =IF(B13>'User input'!F$21,"",IF(B13>0,(P13-P12),0)) -> 688.2790391 | R13: =IF(B13>'User input'!F$21,"",Q13/'User input'!F$22) -> 2.753116156 | S13: =IF(B13>'User input'!F$21,"",(J13+L13+O13+Q13)*('User input'!L$15+'User input'!L$16)-IF(B13='User input'!F$21,(F13-K13)*'User input'!L$15,0)) -> 29444.005 | T13: =IF(B13>'User input'!F$21,"",L13+M13+N13+O13+Q13-S13) -> -13380.72596 | U13: =IF(B13>'User input'!F$21,"",C13*T13) -> -12961.4239
B14: =IF(B13>='User input'!F$21,"",B13+1) -> 2 | C14: =IF(B14>'User input'!F$21,"",'User input'!F$38^B14) -> 0.9383094187 | D14: =IF(B14>'User input'!F$21,"",IF(B14=0,'User input'!F$14,D13+1)) -> 2 | E14: =IF(B14>'User input'!F$21,"",IF(B14=0,'User input'!F$15,E13+'User input'!F$22)) -> 500 | F14: =IF(B14>'User input'!F$21,"",IF(F$57=1,F62,IF(F$57=2,H62,"Error"))) -> 201074.5586 | G14: =IF(B14>'User input'!F$21,"",IF(B14>0,F13*'User input'!L$13,0)) -> 11712.89049 | H14: =IF(B14>'User input'!F$21,"",IF(B14>0,F13-F14,0)) -> 33183.25117 | I14: =IF(B14>'User input'!F$21,"",IF(B14>7,0,IF(SUM(I$11:I13)<1,IF(B14='User input'!F$21,'User input'!L24/2,'User input'!L24),0))) -> 0.1749 | J14: =IF(B14>'User input'!F$21,"",IF(B14=0,MIN('User input'!F$16,'User input'!L$17)+'User input'!L$19+'User input'!L$20*I14,'User input'!L$20*I14)) -> 48097.5 | K14: =IF(B14>'User input'!F$21,"",IF(B14=0,'User input'!F$16-J14,K13-J14)) -> 120257.5 | L14: =IF(B14>'User input'!F$21,"",IF(B14>0,('User input'!F$16-'User input'!F$18)*'User input'!L$13,0)) -> 11250 | M14: =IF(B14>'User input'!F$21,"",IF(B14='User input'!F$21,'User input'!F$16-'User input'!F$18,0)) -> 0 | N14: =IF(B14>'User input'!F$21,"",IF(B14=0,'User input'!F$18,IF(B14='User input'!F$21,-F14,0))) -> 0 | O14: =IF(B14>'User input'!F$21,"",IF(B14>0,'User input'!F$35*F13,0)) -> 3513.867146 | P14: =IF(B14>'User input'!F$21,"",(IF(E14>'User input'!L$11,(E14-'User input'!L$11)*'User input'!F$34+'User input'!J$11*'User input'!F$19*'User input'!F$32*('User input'!L$11/1000)^'User input'!K$11,'User input'!J$11*'User input'!F$19*'User input'!F$32*(E14/1000)^'User input'!K$11))*'User input'!F$33) -> 2950.716836 | Q14: =IF(B14>'User input'!F$21,"",IF(B14>0,(P14-P13),0)) -> 2262.437797 | R14: =IF(B14>'User input'!F$21,"",Q14/'User input'!F$22) -> 9.049751187 | S14: =IF(B14>'User input'!F$21,"",(J14+L14+O14+Q14)*('User input'!L$15+'User input'!L$16)-IF(B14='User input'!F$21,(F14-K14)*'User input'!L$15,0)) -> 22988.70314 | T14: =IF(B14>'User input'!F$21,"",L14+M14+N14+O14+Q14-S14) -> -5962.398202 | U14: =IF(B14>'User input'!F$21,"",C14*T14) -> -5594.574391
B15: =IF(B14>='User input'!F$21,"",B14+1) -> 3 | C15: =IF(B15>'User input'!F$21,"",'User input'!F$38^B15) -> 0.9089062999 | D15: =IF(B15>'User input'!F$21,"",IF(B15=0,'User input'!F$14,D14+1)) -> 3 | E15: =IF(B15>'User input'!F$21,"",IF(B15=0,'User input'!F$15,E14+'User input'!F$22)) -> 750 | F15: =IF(B15>'User input'!F$21,"",IF(F$57=1,F63,IF(F$57=2,H63,"Error"))) -> 173908.909 | G15: =IF(B15>'User input'!F$21,"",IF(B15>0,F14*'User input'!L$13,0)) -> 10053.72793 | H15: =IF(B15>'User input'!F$21,"",IF(B15>0,F14-F15,0)) -> 27165.64964 | I15: =IF(B15>'User input'!F$21,"",IF(B15>7,0,IF(SUM(I$11:I14)<1,IF(B15='User input'!F$21,'User input'!L25/2,'User input'!L25),0))) -> 0.1249 | J15: =IF(B15>'User input'!F$21,"",IF(B15=0,MIN('User input'!F$16,'User input'!L$17)+'User input'!L$19+'User input'!L$20*I15,'User input'!L$20*I15)) -> 34347.5 | K15: =IF(B15>'User input'!F$21,"",IF(B15=0,'User input'!F$16-J15,K14-J15)) -> 85910 | L15: =IF(B15>'User input'!F$21,"",IF(B15>0,('User input'!F$16-'User input'!F$18)*'User input'!L$13,0)) -> 11250 | M15: =IF(B15>'User input'!F$21,"",IF(B15='User input'!F$21,'User input'!F$16-'User input'!F$18,0)) -> 0 | N15: =IF(B15>'User input'!F$21,"",IF(B15=0,'User input'!F$18,IF(B15='User input'!F$21,-F15,0))) -> 0 | O15: =IF(B15>'User input'!F$21,"",IF(B15>0,'User input'!F$35*F14,0)) -> 3016.118379 | P15: =IF(B15>'User input'!F$21,"",(IF(E15>'User input'!L$11,(E15-'User input'!L$11)*'User input'!F$34+'User input'!J$11*'User input'!F$19*'User input'!F$32*('User input'!L$11/1000)^'User input'!K$11,'User input'!J$11*'User input'!F$19*'User input'!F$32*(E15/1000)^'User input'!K$11))*'User input'!F$33) -> 6913.837672 | Q15: =IF(B15>'User input'!F$21,"",IF(B15>0,(P15-P14),0)) -> 3963.120836 | R15: =IF(B15>'User input'!F$21,"",Q15/'User input'!F$22) -> 15.85248334 | S15: =IF(B15>'User input'!F$21,"",(J15+L15+O15+Q15)*('User input'!L$15+'User input'!L$16)-IF(B15='User input'!F$21,(F15-K15)*'User input'!L$15,0)) -> 18559.58894 | T15: =IF(B15>'User input'!F$21,"",L15+M15+N15+O15+Q15-S15) -> -330.349728 | U15: =IF(B15>'User input'!F$21,"",C15*T15) -> -300.256949
B16: =IF(B15>='User input'!F$21,"",B15+1) -> 4 | C16: =IF(B16>'User input'!F$21,"",'User input'!F$38^B16) -> 0.8804245652 | D16: =IF(B16>'User input'!F$21,"",IF(B16=0,'User input'!F$14,D15+1)) -> 4 | E16: =IF(B16>'User input'!F$21,"",IF(B16=0,'User input'!F$15,E15+'User input'!F$22)) -> 1000 | F16: =IF(B16>'User input'!F$21,"",IF(F$57=1,F64,IF(F$57=2,H64,"Error"))) -> 151561.2568 | G16: =IF(B16>'User input'!F$21,"",IF(B16>0,F15*'User input'!L$13,0)) -> 8695.445448 | H16: =IF(B16>'User input'!F$21,"",IF(B16>0,F15-F16,0)) -> 22347.65216 | I16: =IF(B16>'User input'!F$21,"",IF(B16>7,0,IF(SUM(I$11:I15)<1,IF(B16='User input'!F$21,'User input'!L26/2,'User input'!L26),0))) -> 0.0893 | J16: =IF(B16>'User input'!F$21,"",IF(B16=0,MIN('User input'!F$16,'User input'!L$17)+'User input'!L$19+'User input'!L$20*I16,'User input'!L$20*I16)) -> 24557.5 | K16: =IF(B16>'User input'!F$21,"",IF(B16=0,'User input'!F$16-J16,K15-J16)) -> 61352.5 | L16: =IF(B16>'User input'!F$21,"",IF(B16>0,('User input'!F$16-'User input'!F$18)*'User input'!L$13,0)) -> 11250 | M16: =IF(B16>'User input'!F$21,"",IF(B16='User input'!F$21,'User input'!F$16-'User input'!F$18,0)) -> 0 | N16: =IF(B16>'User input'!F$21,"",IF(B16=0,'User input'!F$18,IF(B16='User input'!F$21,-F16,0))) -> 0 | O16: =IF(B16>'User input'!F$21,"",IF(B16>0,'User input'!F$35*F15,0)) -> 2608.633634 | P16: =IF(B16>'User input'!F$21,"",(IF(E16>'User input'!L$11,(E16-'User input'!L$11)*'User input'!F$34+'User input'!J$11*'User input'!F$19*'User input'!F$32*('User input'!L$11/1000)^'User input'!K$11,'User input'!J$11*'User input'!F$19*'User input'!F$32*(E16/1000)^'User input'!K$11))*'User input'!F$33) -> 12650 | Q16: =IF(B16>'User input'!F$21,"",IF(B16>0,(P16-P15),0)) -> 5736.162328 | R16: =IF(B16>'User input'!F$21,"",Q16/'User input'!F$22) -> 22.94464931 | S16: =IF(B16>'User input'!F$21,"",(J16+L16+O16+Q16)*('User input'!L$15+'User input'!L$16)-IF(B16='User input'!F$21,(F16-K16)*'User input'!L$15,0)) -> 15585.76047 | T16: =IF(B16>'User input'!F$21,"",L16+M16+N16+O16+Q16-S16) -> 4009.035488 | U16: =IF(B16>'User input'!F$21,"",C16*T16) -> 3529.653326
B17: =IF(B16>='User input'!F$21,"",B16+1) -> 5 | C17: =IF(B17>'User input'!F$21,"",'User input'!F$38^B17) -> 0.8528353419 | D17: =IF(B17>'User input'!F$21,"",IF(B17=0,'User input'!F$14,D16+1)) -> 5 | E17: =IF(B17>'User input'!F$21,"",IF(B17=0,'User input'!F$15,E16+'User input'!F$22)) -> 1250 | F17: =IF(B17>'User input'!F$21,"",IF(F$57=1,F65,IF(F$57=2,H65,"Error"))) -> 133093.3101 | G17: =IF(B17>'User input'!F$21,"",IF(B17>0,F16*'User input'!L$13,0)) -> 7578.06284 | H17: =IF(B17>'User input'!F$21,"",IF(B17>0,F16-F17,0)) -> 18467.9467 | I17: =IF(B17>'User input'!F$21,"",IF(B17>7,0,IF(SUM(I$11:I16)<1,IF(B17='User input'!F$21,'User input'!L27/2,'User input'!L27),0))) -> 0.0446 | J17: =IF(B17>'User input'!F$21,"",IF(B17=0,MIN('User input'!F$16,'User input'!L$17)+'User input'!L$19+'User input'!L$20*I17,'User input'!L$20*I17)) -> 12265 | K17: =IF(B17>'User input'!F$21,"",IF(B17=0,'User input'!F$16-J17,K16-J17)) -> 49087.5 | L17: =IF(B17>'User input'!F$21,"",IF(B17>0,('User input'!F$16-'User input'!F$18)*'User input'!L$13,0)) -> 11250 | M17: =IF(B17>'User input'!F$21,"",IF(B17='User input'!F$21,'User input'!F$16-'User input'!F$18,0)) -> 225000 | N17: =IF(B17>'User input'!F$21,"",IF(B17=0,'User input'!F$18,IF(B17='User input'!F$21,-F17,0))) -> -133093.3101 | O17: =IF(B17>'User input'!F$21,"",IF(B17>0,'User input'!F$35*F16,0)) -> 2273.418852 | P17: =IF(B17>'User input'!F$21,"",(IF(E17>'User input'!L$11,(E17-'User input'!L$11)*'User input'!F$34+'User input'!J$11*'User input'!F$19*'User input'!F$32*('User input'!L$11/1000)^'User input'!K$11,'User input'!J$11*'User input'!F$19*'User input'!F$32*(E17/1000)^'User input'!K$11))*'User input'!F$33) -> 20211.63994 | Q17: =IF(B17>'User input'!F$21,"",IF(B17>0,(P17-P16),0)) -> 7561.639937 | R17: =IF(B17>'User input'!F$21,"",Q17/'User input'!F$22) -> 30.24655975 | S17: =IF(B17>'User input'!F$21,"",(J17+L17+O17+Q17)*('User input'!L$15+'User input'!L$16)-IF(B17='User input'!F$21,(F17-K17)*'User input'!L$15,0)) -> -5028.591266 | T17: =IF(B17>'User input'!F$21,"",L17+M17+N17+O17+Q17-S17) -> 118020.34 | U17: =IF(B17>'User input'!F$21,"",C17*T17) -> 100651.917
B18: =IF(B17>='User input'!F$21,"",B17+1) ->  | C18: =IF(B18>'User input'!F$21,"",'User input'!F$38^B18) ->  | D18: =IF(B18>'User input'!F$21,"",IF(B18=0,'User input'!F$14,D17+1)) ->  | E18: =IF(B18>'User input'!F$21,"",IF(B18=0,'User input'!F$15,E17+'User input'!F$22)) ->  | F18: =IF(B18>'User input'!F$21,"",IF(F$57=1,F66,IF(F$57=2,H66,"Error"))) ->  | G18: =IF(B18>'User input'!F$21,"",IF(B18>0,F17*'User input'!L$13,0)) ->  | H18: =IF(B18>'User input'!F$21,"",IF(B18>0,F17-F18,0)) ->  | I18: =IF(B18>'User input'!F$21,"",IF(B18>7,0,IF(SUM(I$11:I17)<1,IF(B18='User input'!F$21,'User input'!L28/2,'User input'!L28),0))) ->  | J18: =IF(B18>'User input'!F$21,"",IF(B18=0,MIN('User input'!F$16,'User input'!L$17)+'User input'!L$19+'User input'!L$20*I18,'User input'!L$20*I18)) ->  | K18: =IF(B18>'User input'!F$21,"",IF(B18=0,'User input'!F$16-J18,K17-J18)) ->  | L18: =IF(B18>'User input'!F$21,"",IF(B18>0,('User input'!F$16-'User input'!F$18)*'User input'!L$13,0)) ->  | M18: =IF(B18>'User input'!F$21,"",IF(B18='User input'!F$21,'User input'!F$16-'User input'!F$18,0)) ->  | N18: =IF(B18>'User input'!F$21,"",IF(B18=0,'User input'!F$18,IF(B18='User input'!F$21,-F18,0))) ->  | O18: =IF(B18>'User input'!F$21,"",IF(B18>0,'User input'!F$35*F17,0)) ->  | P18: =IF(B18>'User input'!F$21,"",(IF(E18>'User input'!L$11,(E18-'User input'!L$11)*'User input'!F$34+'User input'!J$11*'User input'!F$19*'User input'!F$32*('User input'!L$11/1000)^'User input'!K$11,'User input'!J$11*'User input'!F$19*'User input'!F$32*(E18/1000)^'User input'!K$11))*'User input'!F$33) ->  | Q18: =IF(B18>'User input'!F$21,"",IF(B18>0,(P18-P17),0)) ->  | R18: =IF(B18>'User input'!F$21,"",Q18/'User input'!F$22) ->  | S18: =IF(B18>'User input'!F$21,"",(J18+L18+O18+Q18)*('User input'!L$15+'User input'!L$16)-IF(B18='User input'!F$21,(F18-K18)*'User input'!L$15,0)) ->  | T18: =IF(B18>'User input'!F$21,"",L18+M18+N18+O18+Q18-S18) ->  | U18: =IF(B18>'User input'!F$21,"",C18*T18) -> 
B19: =IF(B18>='User input'!F$21,"",B18+1) ->  | C19: =IF(B19>'User input'!F$21,"",'User input'!F$38^B19) ->  | D19: =IF(B19>'User input'!F$21,"",IF(B19=0,'User input'!F$14,D18+1)) ->  | E19: =IF(B19>'User input'!F$21,"",IF(B19=0,'User input'!F$15,E18+'User input'!F$22)) ->  | F19: =IF(B19>'User input'!F$21,"",IF(F$57=1,F67,IF(F$57=2,H67,"Error"))) ->  | G19: =IF(B19>'User input'!F$21,"",IF(B19>0,F18*'User input'!L$13,0)) ->  | H19: =IF(B19>'User input'!F$21,"",IF(B19>0,F18-F19,0)) ->  | I19: =IF(B19>'User input'!F$21,"",IF(B19>7,0,IF(SUM(I$11:I18)<1,IF(B19='User input'!F$21,'User input'!L29/2,'User input'!L29),0))) ->  | J19: =IF(B19>'User input'!F$21,"",IF(B19=0,MIN('User input'!F$16,'User input'!L$17)+'User input'!L$19+'User input'!L$20*I19,'User input'!L$20*I19)) ->  | K19: =IF(B19>'User input'!F$21,"",IF(B19=0,'User input'!F$16-J19,K18-J19)) ->  | L19: =IF(B19>'User input'!F$21,"",IF(B19>0,('User input'!F$16-'User input'!F$18)*'User input'!L$13,0)) ->  | M19: =IF(B19>'User input'!F$21,"",IF(B19='User input'!F$21,'User input'!F$16-'User input'!F$18,0)) ->  | N19: =IF(B19>'User input'!F$21,"",IF(B19=0,'User input'!F$18,IF(B19='User input'!F$21,-F19,0))) ->  | O19: =IF(B19>'User input'!F$21,"",IF(B19>0,'User input'!F$35*F18,0)) ->  | P19: =IF(B19>'User input'!F$21,"",(IF(E19>'User input'!L$11,(E19-'User input'!L$11)*'User input'!F$34+'User input'!J$11*'User input'!F$19*'User input'!F$32*('User input'!L$11/1000)^'User input'!K$11,'User input'!J$11*'User input'!F$19*'User input'!F$32*(E19/1000)^'User input'!K$11))*'User input'!F$33) ->  | Q19: =IF(B19>'User input'!F$21,"",IF(B19>0,(P19-P18),0)) ->  | R19: =IF(B19>'User input'!F$21,"",Q19/'User input'!F$22) ->  | S19: =IF(B19>'User input'!F$21,"",(J19+L19+O19+Q19)*('User input'!L$15+'User input'!L$16)-IF(B19='User input'!F$21,(F19-K19)*'User input'!L$15,0)) ->  | T19: =IF(B19>'User input'!F$21,"",L19+M19+N19+O19+Q19-S19) ->  | U19: =IF(B19>'User input'!F$21,"",C19*T19) -> 
B20: =IF(B19>='User input'!F$21,"",B19+1) ->  | C20: =IF(B20>'User input'!F$21,"",'User input'!F$38^B20) ->  | D20: =IF(B20>'User input'!F$21,"",IF(B20=0,'User input'!F$14,D19+1)) ->  | E20: =IF(B20>'User input'!F$21,"",IF(B20=0,'User input'!F$15,E19+'User input'!F$22)) ->  | F20: =IF(B20>'User input'!F$21,"",IF(F$57=1,F68,IF(F$57=2,H68,"Error"))) ->  | G20: =IF(B20>'User input'!F$21,"",IF(B20>0,F19*'User input'!L$13,0)) ->  | H20: =IF(B20>'User input'!F$21,"",IF(B20>0,F19-F20,0)) ->  | I20: =IF(B20>'User input'!F$21,"",IF(B20>7,0,IF(SUM(I$11:I19)<1,IF(B20='User input'!F$21,'User input'!L30/2,'User input'!L30),0))) ->  | J20: =IF(B20>'User input'!F$21,"",IF(B20=0,MIN('User input'!F$16,'User input'!L$17)+'User input'!L$19+'User input'!L$20*I20,'User input'!L$20*I20)) ->  | K20: =IF(B20>'User input'!F$21,"",IF(B20=0,'User input'!F$16-J20,K19-J20)) ->  | L20: =IF(B20>'User input'!F$21,"",IF(B20>0,('User input'!F$16-'User input'!F$18)*'User input'!L$13,0)) ->  | M20: =IF(B20>'User input'!F$21,"",IF(B20='User input'!F$21,'User input'!F$16-'User input'!F$18,0)) ->  | N20: =IF(B20>'User input'!F$21,"",IF(B20=0,'User input'!F$18,IF(B20='User input'!F$21,-F20,0))) ->  | O20: =IF(B20>'User input'!F$21,"",IF(B20>0,'User input'!F$35*F19,0)) ->  | P20: =IF(B20>'User input'!F$21,"",(IF(E20>'User input'!L$11,(E20-'User input'!L$11)*'User input'!F$34+'User input'!J$11*'User input'!F$19*'User input'!F$32*('User input'!L$11/1000)^'User input'!K$11,'User input'!J$11*'User input'!F$19*'User input'!F$32*(E20/1000)^'User input'!K$11))*'User input'!F$33) ->  | Q20: =IF(B20>'User input'!F$21,"",IF(B20>0,(P20-P19),0)) ->  | R20: =IF(B20>'User input'!F$21,"",Q20/'User input'!F$22) ->  | S20: =IF(B20>'User input'!F$21,"",(J20+L20+O20+Q20)*('User input'!L$15+'User input'!L$16)-IF(B20='User input'!F$21,(F20-K20)*'User input'!L$15,0)) ->  | T20: =IF(B20>'User input'!F$21,"",L20+M20+N20+O20+Q20-S20) ->  | U20: =IF(B20>'User input'!F$21,"",C20*T20) -> 
B21: =IF(B20>='User input'!F$21,"",B20+1) ->  | C21: =IF(B21>'User input'!F$21,"",'User input'!F$38^B21) ->  | D21: =IF(B21>'User input'!F$21,"",IF(B21=0,'User input'!F$14,D20+1)) ->  | E21: =IF(B21>'User input'!F$21,"",IF(B21=0,'User input'!F$15,E20+'User input'!F$22)) ->  | F21: =IF(B21>'User input'!F$21,"",IF(F$57=1,F69,IF(F$57=2,H69,"Error"))) ->  | G21: =IF(B21>'User input'!F$21,"",IF(B21>0,F20*'User input'!L$13,0)) ->  | H21: =IF(B21>'User input'!F$21,"",IF(B21>0,F20-F21,0)) ->  | I21: =IF(B21>'User input'!F$21,"",IF(B21>7,0,IF(SUM(I$11:I20)<1,IF(B21='User input'!F$21,'User input'!L31/2,'User input'!L31),0))) ->  | J21: =IF(B21>'User input'!F$21,"",IF(B21=0,MIN('User input'!F$16,'User input'!L$17)+'User input'!L$19+'User input'!L$20*I21,'User input'!L$20*I21)) ->  | K21: =IF(B21>'User input'!F$21,"",IF(B21=0,'User input'!F$16-J21,K20-J21)) ->  | L21: =IF(B21>'User input'!F$21,"",IF(B21>0,('User input'!F$16-'User input'!F$18)*'User input'!L$13,0)) ->  | M21: =IF(B21>'User input'!F$21,"",IF(B21='User input'!F$21,'User input'!F$16-'User input'!F$18,0)) ->  | N21: =IF(B21>'User input'!F$21,"",IF(B21=0,'User input'!F$18,IF(B21='User input'!F$21,-F21,0))) ->  | O21: =IF(B21>'User input'!F$21,"",IF(B21>0,'User input'!F$35*F20,0)) ->  | P21: =IF(B21>'User input'!F$21,"",(IF(E21>'User input'!L$11,(E21-'User input'!L$11)*'User input'!F$34+'User input'!J$11*'User input'!F$19*'User input'!F$32*('User input'!L$11/1000)^'User input'!K$11,'User input'!J$11*'User input'!F$19*'User input'!F$32*(E21/1000)^'User input'!K$11))*'User input'!F$33) ->  | Q21: =IF(B21>'User input'!F$21,"",IF(B21>0,(P21-P20),0)) ->  | R21: =IF(B21>'User input'!F$21,"",Q21/'User input'!F$22) ->  | S21: =IF(B21>'User input'!F$21,"",(J21+L21+O21+Q21)*('User input'!L$15+'User input'!L$16)-IF(B21='User input'!F$21,(F21-K21)*'User input'!L$15,0)) ->  | T21: =IF(B21>'User input'!F$21,"",L21+M21+N21+O21+Q21-S21) ->  | U21: =IF(B21>'User input'!F$21,"",C21*T21) -> 
B22: =IF(B21>='User input'!F$21,"",B21+1) ->  | C22: =IF(B22>'User input'!F$21,"",'User input'!F$38^B22) ->  | D22: =IF(B22>'User input'!F$21,"",IF(B22=0,'User input'!F$14,D21+1)) ->  | E22: =IF(B22>'User input'!F$21,"",IF(B22=0,'User input'!F$15,E21+'User input'!F$22)) ->  | F22: =IF(B22>'User input'!F$21,"",IF(F$57=1,F70,IF(F$57=2,H70,"Error"))) ->  | G22: =IF(B22>'User input'!F$21,"",IF(B22>0,F21*'User input'!L$13,0)) ->  | H22: =IF(B22>'User input'!F$21,"",IF(B22>0,F21-F22,0)) ->  | I22: =IF(B22>'User input'!F$21,"",IF(B22>7,0,IF(SUM(I$11:I21)<1,IF(B22='User input'!F$21,'User input'!L32/2,'User input'!L32),0))) ->  | J22: =IF(B22>'User input'!F$21,"",IF(B22=0,MIN('User input'!F$16,'User input'!L$17)+'User input'!L$19+'User input'!L$20*I22,'User input'!L$20*I22)) ->  | K22: =IF(B22>'User input'!F$21,"",IF(B22=0,'User input'!F$16-J22,K21-J22)) ->  | L22: =IF(B22>'User input'!F$21,"",IF(B22>0,('User input'!F$16-'User input'!F$18)*'User input'!L$13,0)) ->  | M22: =IF(B22>'User input'!F$21,"",IF(B22='User input'!F$21,'User input'!F$16-'User input'!F$18,0)) ->  | N22: =IF(B22>'User input'!F$21,"",IF(B22=0,'User input'!F$18,IF(B22='User input'!F$21,-F22,0))) ->  | O22: =IF(B22>'User input'!F$21,"",IF(B22>0,'User input'!F$35*F21,0)) ->  | P22: =IF(B22>'User input'!F$21,"",(IF(E22>'User input'!L$11,(E22-'User input'!L$11)*'User input'!F$34+'User input'!J$11*'User input'!F$19*'User input'!F$32*('User input'!L$11/1000)^'User input'!K$11,'User input'!J$11*'User input'!F$19*'User input'!F$32*(E22/1000)^'User input'!K$11))*'User input'!F$33) ->  | Q22: =IF(B22>'User input'!F$21,"",IF(B22>0,(P22-P21),0)) ->  | R22: =IF(B22>'User input'!F$21,"",Q22/'User input'!F$22) ->  | S22: =IF(B22>'User input'!F$21,"",(J22+L22+O22+Q22)*('User input'!L$15+'User input'!L$16)-IF(B22='User input'!F$21,(F22-K22)*'User input'!L$15,0)) ->  | T22: =IF(B22>'User input'!F$21,"",L22+M22+N22+O22+Q22-S22) ->  | U22: =IF(B22>'User input'!F$21,"",C22*T22) -> 
B23: =IF(B22>='User input'!F$21,"",B22+1) ->  | C23: =IF(B23>'User input'!F$21,"",'User input'!F$38^B23) ->  | D23: =IF(B23>'User input'!F$21,"",IF(B23=0,'User input'!F$14,D22+1)) ->  | E23: =IF(B23>'User input'!F$21,"",IF(B23=0,'User input'!F$15,E22+'User input'!F$22)) ->  | F23: =IF(B23>'User input'!F$21,"",IF(F$57=1,F71,IF(F$57=2,H71,"Error"))) ->  | G23: =IF(B23>'User input'!F$21,"",IF(B23>0,F22*'User input'!L$13,0)) ->  | H23: =IF(B23>'User input'!F$21,"",IF(B23>0,F22-F23,0)) ->  | I23: =IF(B23>'User input'!F$21,"",IF(B23>7,0,IF(SUM(I$11:I22)<1,IF(B23='User input'!F$21,'User input'!L33/2,'User input'!L33),0))) ->  | J23: =IF(B23>'User input'!F$21,"",IF(B23=0,MIN('User input'!F$16,'User input'!L$17)+'User input'!L$19+'User input'!L$20*I23,'User input'!L$20*I23)) ->  | K23: =IF(B23>'User input'!F$21,"",IF(B23=0,'User input'!F$16-J23,K22-J23)) ->  | L23: =IF(B23>'User input'!F$21,"",IF(B23>0,('User input'!F$16-'User input'!F$18)*'User input'!L$13,0)) ->  | M23: =IF(B23>'User input'!F$21,"",IF(B23='User input'!F$21,'User input'!F$16-'User input'!F$18,0)) ->  | N23: =IF(B23>'User input'!F$21,"",IF(B23=0,'User input'!F$18,IF(B23='User input'!F$21,-F23,0))) ->  | O23: =IF(B23>'User input'!F$21,"",IF(B23>0,'User input'!F$35*F22,0)) ->  | P23: =IF(B23>'User input'!F$21,"",(IF(E23>'User input'!L$11,(E23-'User input'!L$11)*'User input'!F$34+'User input'!J$11*'User input'!F$19*'User input'!F$32*('User input'!L$11/1000)^'User input'!K$11,'User input'!J$11*'User input'!F$19*'User input'!F$32*(E23/1000)^'User input'!K$11))*'User input'!F$33) ->  | Q23: =IF(B23>'User input'!F$21,"",IF(B23>0,(P23-P22),0)) ->  | R23: =IF(B23>'User input'!F$21,"",Q23/'User input'!F$22) ->  | S23: =IF(B23>'User input'!F$21,"",(J23+L23+O23+Q23)*('User input'!L$15+'User input'!L$16)-IF(B23='User input'!F$21,(F23-K23)*'User input'!L$15,0)) ->  | T23: =IF(B23>'User input'!F$21,"",L23+M23+N23+O23+Q23-S23) ->  | U23: =IF(B23>'User input'!F$21,"",C23*T23) -> 
B24: =IF(B23>='User input'!F$21,"",B23+1) ->  | C24: =IF(B24>'User input'!F$21,"",'User input'!F$38^B24) ->  | D24: =IF(B24>'User input'!F$21,"",IF(B24=0,'User input'!F$14,D23+1)) ->  | E24: =IF(B24>'User input'!F$21,"",IF(B24=0,'User input'!F$15,E23+'User input'!F$22)) ->  | F24: =IF(B24>'User input'!F$21,"",IF(F$57=1,F72,IF(F$57=2,H72,"Error"))) ->  | G24: =IF(B24>'User input'!F$21,"",IF(B24>0,F23*'User input'!L$13,0)) ->  | H24: =IF(B24>'User input'!F$21,"",IF(B24>0,F23-F24,0)) ->  | I24: =IF(B24>'User input'!F$21,"",IF(B24>7,0,IF(SUM(I$11:I23)<1,IF(B24='User input'!F$21,'User input'!L34/2,'User input'!L34),0))) ->  | J24: =IF(B24>'User input'!F$21,"",IF(B24=0,MIN('User input'!F$16,'User input'!L$17)+'User input'!L$19+'User input'!L$20*I24,'User input'!L$20*I24)) ->  | K24: =IF(B24>'User input'!F$21,"",IF(B24=0,'User input'!F$16-J24,K23-J24)) ->  | L24: =IF(B24>'User input'!F$21,"",IF(B24>0,('User input'!F$16-'User input'!F$18)*'User input'!L$13,0)) ->  | M24: =IF(B24>'User input'!F$21,"",IF(B24='User input'!F$21,'User input'!F$16-'User input'!F$18,0)) ->  | N24: =IF(B24>'User input'!F$21,"",IF(B24=0,'User input'!F$18,IF(B24='User input'!F$21,-F24,0))) ->  | O24: =IF(B24>'User input'!F$21,"",IF(B24>0,'User input'!F$35*F23,0)) ->  | P24: =IF(B24>'User input'!F$21,"",(IF(E24>'User input'!L$11,(E24-'User input'!L$11)*'User input'!F$34+'User input'!J$11*'User input'!F$19*'User input'!F$32*('User input'!L$11/1000)^'User input'!K$11,'User input'!J$11*'User input'!F$19*'User input'!F$32*(E24/1000)^'User input'!K$11))*'User input'!F$33) ->  | Q24: =IF(B24>'User input'!F$21,"",IF(B24>0,(P24-P23),0)) ->  | R24: =IF(B24>'User input'!F$21,"",Q24/'User input'!F$22) ->  | S24: =IF(B24>'User input'!F$21,"",(J24+L24+O24+Q24)*('User input'!L$15+'User input'!L$16)-IF(B24='User input'!F$21,(F24-K24)*'User input'!L$15,0)) ->  | T24: =IF(B24>'User input'!F$21,"",L24+M24+N24+O24+Q24-S24) ->  | U24: =IF(B24>'User input'!F$21,"",C24*T24) -> 
B25: =IF(B24>='User input'!F$21,"",B24+1) ->  | C25: =IF(B25>'User input'!F$21,"",'User input'!F$38^B25) ->  | D25: =IF(B25>'User input'!F$21,"",IF(B25=0,'User input'!F$14,D24+1)) ->  | E25: =IF(B25>'User input'!F$21,"",IF(B25=0,'User input'!F$15,E24+'User input'!F$22)) ->  | F25: =IF(B25>'User input'!F$21,"",IF(F$57=1,F73,IF(F$57=2,H73,"Error"))) ->  | G25: =IF(B25>'User input'!F$21,"",IF(B25>0,F24*'User input'!L$13,0)) ->  | H25: =IF(B25>'User input'!F$21,"",IF(B25>0,F24-F25,0)) ->  | I25: =IF(B25>'User input'!F$21,"",IF(B25>7,0,IF(SUM(I$11:I24)<1,IF(B25='User input'!F$21,'User input'!L35/2,'User input'!L35),0))) ->  | J25: =IF(B25>'User input'!F$21,"",IF(B25=0,MIN('User input'!F$16,'User input'!L$17)+'User input'!L$19+'User input'!L$20*I25,'User input'!L$20*I25)) ->  | K25: =IF(B25>'User input'!F$21,"",IF(B25=0,'User input'!F$16-J25,K24-J25)) ->  | L25: =IF(B25>'User input'!F$21,"",IF(B25>0,('User input'!F$16-'User input'!F$18)*'User input'!L$13,0)) ->  | M25: =IF(B25>'User input'!F$21,"",IF(B25='User input'!F$21,'User input'!F$16-'User input'!F$18,0)) ->  | N25: =IF(B25>'User input'!F$21,"",IF(B25=0,'User input'!F$18,IF(B25='User input'!F$21,-F25,0))) ->  | O25: =IF(B25>'User input'!F$21,"",IF(B25>0,'User input'!F$35*F24,0)) ->  | P25: =IF(B25>'User input'!F$21,"",(IF(E25>'User input'!L$11,(E25-'User input'!L$11)*'User input'!F$34+'User input'!J$11*'User input'!F$19*'User input'!F$32*('User input'!L$11/1000)^'User input'!K$11,'User input'!J$11*'User input'!F$19*'User input'!F$32*(E25/1000)^'User input'!K$11))*'User input'!F$33) ->  | Q25: =IF(B25>'User input'!F$21,"",IF(B25>0,(P25-P24),0)) ->  | R25: =IF(B25>'User input'!F$21,"",Q25/'User input'!F$22) ->  | S25: =IF(B25>'User input'!F$21,"",(J25+L25+O25+Q25)*('User input'!L$15+'User input'!L$16)-IF(B25='User input'!F$21,(F25-K25)*'User input'!L$15,0)) ->  | T25: =IF(B25>'User input'!F$21,"",L25+M25+N25+O25+Q25-S25) ->  | U25: =IF(B25>'User input'!F$21,"",C25*T25) -> 
B26: =IF(B25>='User input'!F$21,"",B25+1) ->  | C26: =IF(B26>'User input'!F$21,"",'User input'!F$38^B26) ->  | D26: =IF(B26>'User input'!F$21,"",IF(B26=0,'User input'!F$14,D25+1)) ->  | E26: =IF(B26>'User input'!F$21,"",IF(B26=0,'User input'!F$15,E25+'User input'!F$22)) ->  | F26: =IF(B26>'User input'!F$21,"",IF(F$57=1,F74,IF(F$57=2,H74,"Error"))) ->  | G26: =IF(B26>'User input'!F$21,"",IF(B26>0,F25*'User input'!L$13,0)) ->  | H26: =IF(B26>'User input'!F$21,"",IF(B26>0,F25-F26,0)) ->  | I26: =IF(B26>'User input'!F$21,"",IF(B26>7,0,IF(SUM(I$11:I25)<1,IF(B26='User input'!F$21,'User input'!L36/2,'User input'!L36),0))) ->  | J26: =IF(B26>'User input'!F$21,"",IF(B26=0,MIN('User input'!F$16,'User input'!L$17)+'User input'!L$19+'User input'!L$20*I26,'User input'!L$20*I26)) ->  | K26: =IF(B26>'User input'!F$21,"",IF(B26=0,'User input'!F$16-J26,K25-J26)) ->  | L26: =IF(B26>'User input'!F$21,"",IF(B26>0,('User input'!F$16-'User input'!F$18)*'User input'!L$13,0)) ->  | M26: =IF(B26>'User input'!F$21,"",IF(B26='User input'!F$21,'User input'!F$16-'User input'!F$18,0)) ->  | N26: =IF(B26>'User input'!F$21,"",IF(B26=0,'User input'!F$18,IF(B26='User input'!F$21,-F26,0))) ->  | O26: =IF(B26>'User input'!F$21,"",IF(B26>0,'User input'!F$35*F25,0)) ->  | P26: =IF(B26>'User input'!F$21,"",(IF(E26>'User input'!L$11,(E26-'User input'!L$11)*'User input'!F$34+'User input'!J$11*'User input'!F$19*'User input'!F$32*('User input'!L$11/1000)^'User input'!K$11,'User input'!J$11*'User input'!F$19*'User input'!F$32*(E26/1000)^'User input'!K$11))*'User input'!F$33) ->  | Q26: =IF(B26>'User input'!F$21,"",IF(B26>0,(P26-P25),0)) ->  | R26: =IF(B26>'User input'!F$21,"",Q26/'User input'!F$22) ->  | S26: =IF(B26>'User input'!F$21,"",(J26+L26+O26+Q26)*('User input'!L$15+'User input'!L$16)-IF(B26='User input'!F$21,(F26-K26)*'User input'!L$15,0)) ->  | T26: =IF(B26>'User input'!F$21,"",L26+M26+N26+O26+Q26-S26) ->  | U26: =IF(B26>'User input'!F$21,"",C26*T26) -> 
B27: =IF(B26>='User input'!F$21,"",B26+1) ->  | C27: =IF(B27>'User input'!F$21,"",'User input'!F$38^B27) ->  | D27: =IF(B27>'User input'!F$21,"",IF(B27=0,'User input'!F$14,D26+1)) ->  | E27: =IF(B27>'User input'!F$21,"",IF(B27=0,'User input'!F$15,E26+'User input'!F$22)) ->  | F27: =IF(B27>'User input'!F$21,"",IF(F$57=1,F75,IF(F$57=2,H75,"Error"))) ->  | G27: =IF(B27>'User input'!F$21,"",IF(B27>0,F26*'User input'!L$13,0)) ->  | H27: =IF(B27>'User input'!F$21,"",IF(B27>0,F26-F27,0)) ->  | I27: =IF(B27>'User input'!F$21,"",IF(B27>7,0,IF(SUM(I$11:I26)<1,IF(B27='User input'!F$21,'User input'!L37/2,'User input'!L37),0))) ->  | J27: =IF(B27>'User input'!F$21,"",IF(B27=0,MIN('User input'!F$16,'User input'!L$17)+'User input'!L$19+'User input'!L$20*I27,'User input'!L$20*I27)) ->  | K27: =IF(B27>'User input'!F$21,"",IF(B27=0,'User input'!F$16-J27,K26-J27)) ->  | L27: =IF(B27>'User input'!F$21,"",IF(B27>0,('User input'!F$16-'User input'!F$18)*'User input'!L$13,0)) ->  | M27: =IF(B27>'User input'!F$21,"",IF(B27='User input'!F$21,'User input'!F$16-'User input'!F$18,0)) ->  | N27: =IF(B27>'User input'!F$21,"",IF(B27=0,'User input'!F$18,IF(B27='User input'!F$21,-F27,0))) ->  | O27: =IF(B27>'User input'!F$21,"",IF(B27>0,'User input'!F$35*F26,0)) ->  | P27: =IF(B27>'User input'!F$21,"",(IF(E27>'User input'!L$11,(E27-'User input'!L$11)*'User input'!F$34+'User input'!J$11*'User input'!F$19*'User input'!F$32*('User input'!L$11/1000)^'User input'!K$11,'User input'!J$11*'User input'!F$19*'User input'!F$32*(E27/1000)^'User input'!K$11))*'User input'!F$33) ->  | Q27: =IF(B27>'User input'!F$21,"",IF(B27>0,(P27-P26),0)) ->  | R27: =IF(B27>'User input'!F$21,"",Q27/'User input'!F$22) ->  | S27: =IF(B27>'User input'!F$21,"",(J27+L27+O27+Q27)*('User input'!L$15+'User input'!L$16)-IF(B27='User input'!F$21,(F27-K27)*'User input'!L$15,0)) ->  | T27: =IF(B27>'User input'!F$21,"",L27+M27+N27+O27+Q27-S27) ->  | U27: =IF(B27>'User input'!F$21,"",C27*T27) -> 
B28: =IF(B27>='User input'!F$21,"",B27+1) ->  | C28: =IF(B28>'User input'!F$21,"",'User input'!F$38^B28) ->  | D28: =IF(B28>'User input'!F$21,"",IF(B28=0,'User input'!F$14,D27+1)) ->  | E28: =IF(B28>'User input'!F$21,"",IF(B28=0,'User input'!F$15,E27+'User input'!F$22)) ->  | F28: =IF(B28>'User input'!F$21,"",IF(F$57=1,F76,IF(F$57=2,H76,"Error"))) ->  | G28: =IF(B28>'User input'!F$21,"",IF(B28>0,F27*'User input'!L$13,0)) ->  | H28: =IF(B28>'User input'!F$21,"",IF(B28>0,F27-F28,0)) ->  | I28: =IF(B28>'User input'!F$21,"",IF(B28>7,0,IF(SUM(I$11:I27)<1,IF(B28='User input'!F$21,'User input'!L38/2,'User input'!L38),0))) ->  | J28: =IF(B28>'User input'!F$21,"",IF(B28=0,MIN('User input'!F$16,'User input'!L$17)+'User input'!L$19+'User input'!L$20*I28,'User input'!L$20*I28)) ->  | K28: =IF(B28>'User input'!F$21,"",IF(B28=0,'User input'!F$16-J28,K27-J28)) ->  | L28: =IF(B28>'User input'!F$21,"",IF(B28>0,('User input'!F$16-'User input'!F$18)*'User input'!L$13,0)) ->  | M28: =IF(B28>'User input'!F$21,"",IF(B28='User input'!F$21,'User input'!F$16-'User input'!F$18,0)) ->  | N28: =IF(B28>'User input'!F$21,"",IF(B28=0,'User input'!F$18,IF(B28='User input'!F$21,-F28,0))) ->  | O28: =IF(B28>'User input'!F$21,"",IF(B28>0,'User input'!F$35*F27,0)) ->  | P28: =IF(B28>'User input'!F$21,"",(IF(E28>'User input'!L$11,(E28-'User input'!L$11)*'User input'!F$34+'User input'!J$11*'User input'!F$19*'User input'!F$32*('User input'!L$11/1000)^'User input'!K$11,'User input'!J$11*'User input'!F$19*'User input'!F$32*(E28/1000)^'User input'!K$11))*'User input'!F$33) ->  | Q28: =IF(B28>'User input'!F$21,"",IF(B28>0,(P28-P27),0)) ->  | R28: =IF(B28>'User input'!F$21,"",Q28/'User input'!F$22) ->  | S28: =IF(B28>'User input'!F$21,"",(J28+L28+O28+Q28)*('User input'!L$15+'User input'!L$16)-IF(B28='User input'!F$21,(F28-K28)*'User input'!L$15,0)) ->  | T28: =IF(B28>'User input'!F$21,"",L28+M28+N28+O28+Q28-S28) ->  | U28: =IF(B28>'User input'!F$21,"",C28*T28) -> 
B29: =IF(B28>='User input'!F$21,"",B28+1) ->  | C29: =IF(B29>'User input'!F$21,"",'User input'!F$38^B29) ->  | D29: =IF(B29>'User input'!F$21,"",IF(B29=0,'User input'!F$14,D28+1)) ->  | E29: =IF(B29>'User input'!F$21,"",IF(B29=0,'User input'!F$15,E28+'User input'!F$22)) ->  | F29: =IF(B29>'User input'!F$21,"",IF(F$57=1,F77,IF(F$57=2,H77,"Error"))) ->  | G29: =IF(B29>'User input'!F$21,"",IF(B29>0,F28*'User input'!L$13,0)) ->  | H29: =IF(B29>'User input'!F$21,"",IF(B29>0,F28-F29,0)) ->  | I29: =IF(B29>'User input'!F$21,"",IF(B29>7,0,IF(SUM(I$11:I28)<1,IF(B29='User input'!F$21,'User input'!#REF!/2,'User input'!#REF!),0))) ->  | J29: =IF(B29>'User input'!F$21,"",IF(B29=0,MIN('User input'!F$16,'User input'!L$17)+'User input'!L$19+'User input'!L$20*I29,'User input'!L$20*I29)) ->  | K29: =IF(B29>'User input'!F$21,"",IF(B29=0,'User input'!F$16-J29,K28-J29)) ->  | L29: =IF(B29>'User input'!F$21,"",IF(B29>0,('User input'!F$16-'User input'!F$18)*'User input'!L$13,0)) ->  | M29: =IF(B29>'User input'!F$21,"",IF(B29='User input'!F$21,'User input'!F$16-'User input'!F$18,0)) ->  | N29: =IF(B29>'User input'!F$21,"",IF(B29=0,'User input'!F$18,IF(B29='User input'!F$21,-F29,0))) ->  | O29: =IF(B29>'User input'!F$21,"",IF(B29>0,'User input'!F$35*F28,0)) ->  | P29: =IF(B29>'User input'!F$21,"",(IF(E29>'User input'!L$11,(E29-'User input'!L$11)*'User input'!F$34+'User input'!J$11*'User input'!F$19*'User input'!F$32*('User input'!L$11/1000)^'User input'!K$11,'User input'!J$11*'User input'!F$19*'User input'!F$32*(E29/1000)^'User input'!K$11))*'User input'!F$33) ->  | Q29: =IF(B29>'User input'!F$21,"",IF(B29>0,(P29-P28),0)) ->  | R29: =IF(B29>'User input'!F$21,"",Q29/'User input'!F$22) ->  | S29: =IF(B29>'User input'!F$21,"",(J29+L29+O29+Q29)*('User input'!L$15+'User input'!L$16)-IF(B29='User input'!F$21,(F29-K29)*'User input'!L$15,0)) ->  | T29: =IF(B29>'User input'!F$21,"",L29+M29+N29+O29+Q29-S29) ->  | U29: =IF(B29>'User input'!F$21,"",C29*T29) -> 
B30: =IF(B29>='User input'!F$21,"",B29+1) ->  | C30: =IF(B30>'User input'!F$21,"",'User input'!F$38^B30) ->  | D30: =IF(B30>'User input'!F$21,"",IF(B30=0,'User input'!F$14,D29+1)) ->  | E30: =IF(B30>'User input'!F$21,"",IF(B30=0,'User input'!F$15,E29+'User input'!F$22)) ->  | F30: =IF(B30>'User input'!F$21,"",IF(F$57=1,F78,IF(F$57=2,H78,"Error"))) ->  | G30: =IF(B30>'User input'!F$21,"",IF(B30>0,F29*'User input'!L$13,0)) ->  | H30: =IF(B30>'User input'!F$21,"",IF(B30>0,F29-F30,0)) ->  | I30: =IF(B30>'User input'!F$21,"",IF(B30>7,0,IF(SUM(I$11:I29)<1,IF(B30='User input'!F$21,'User input'!L39/2,'User input'!L39),0))) ->  | J30: =IF(B30>'User input'!F$21,"",IF(B30=0,MIN('User input'!F$16,'User input'!L$17)+'User input'!L$19+'User input'!L$20*I30,'User input'!L$20*I30)) ->  | K30: =IF(B30>'User input'!F$21,"",IF(B30=0,'User input'!F$16-J30,K29-J30)) ->  | L30: =IF(B30>'User input'!F$21,"",IF(B30>0,('User input'!F$16-'User input'!F$18)*'User input'!L$13,0)) ->  | M30: =IF(B30>'User input'!F$21,"",IF(B30='User input'!F$21,'User input'!F$16-'User input'!F$18,0)) ->  | N30: =IF(B30>'User input'!F$21,"",IF(B30=0,'User input'!F$18,IF(B30='User input'!F$21,-F30,0))) ->  | O30: =IF(B30>'User input'!F$21,"",IF(B30>0,'User input'!F$35*F29,0)) ->  | P30: =IF(B30>'User input'!F$21,"",(IF(E30>'User input'!L$11,(E30-'User input'!L$11)*'User input'!F$34+'User input'!J$11*'User input'!F$19*'User input'!F$32*('User input'!L$11/1000)^'User input'!K$11,'User input'!J$11*'User input'!F$19*'User input'!F$32*(E30/1000)^'User input'!K$11))*'User input'!F$33) ->  | Q30: =IF(B30>'User input'!F$21,"",IF(B30>0,(P30-P29),0)) ->  | R30: =IF(B30>'User input'!F$21,"",Q30/'User input'!F$22) ->  | S30: =IF(B30>'User input'!F$21,"",(J30+L30+O30+Q30)*('User input'!L$15+'User input'!L$16)-IF(B30='User input'!F$21,(F30-K30)*'User input'!L$15,0)) ->  | T30: =IF(B30>'User input'!F$21,"",L30+M30+N30+O30+Q30-S30) ->  | U30: =IF(B30>'User input'!F$21,"",C30*T30) -> 
B31: =IF(B30>='User input'!F$21,"",B30+1) ->  | C31: =IF(B31>'User input'!F$21,"",'User input'!F$38^B31) ->  | D31: =IF(B31>'User input'!F$21,"",IF(B31=0,'User input'!F$14,D30+1)) ->  | E31: =IF(B31>'User input'!F$21,"",IF(B31=0,'User input'!F$15,E30+'User input'!F$22)) ->  | F31: =IF(B31>'User input'!F$21,"",IF(F$57=1,F79,IF(F$57=2,H79,"Error"))) ->  | G31: =IF(B31>'User input'!F$21,"",IF(B31>0,F30*'User input'!L$13,0)) ->  | H31: =IF(B31>'User input'!F$21,"",IF(B31>0,F30-F31,0)) ->  | I31: =IF(B31>'User input'!F$21,"",IF(B31>7,0,IF(SUM(I$11:I30)<1,IF(B31='User input'!F$21,'User input'!#REF!/2,'User input'!#REF!),0))) ->  | J31: =IF(B31>'User input'!F$21,"",IF(B31=0,MIN('User input'!F$16,'User input'!L$17)+'User input'!L$19+'User input'!L$20*I31,'User input'!L$20*I31)) ->  | K31: =IF(B31>'User input'!F$21,"",IF(B31=0,'User input'!F$16-J31,K30-J31)) ->  | L31: =IF(B31>'User input'!F$21,"",IF(B31>0,('User input'!F$16-'User input'!F$18)*'User input'!L$13,0)) ->  | M31: =IF(B31>'User input'!F$21,"",IF(B31='User input'!F$21,'User input'!F$16-'User input'!F$18,0)) ->  | N31: =IF(B31>'User input'!F$21,"",IF(B31=0,'User input'!F$18,IF(B31='User input'!F$21,-F31,0))) ->  | O31: =IF(B31>'User input'!F$21,"",IF(B31>0,'User input'!F$35*F30,0)) ->  | P31: =IF(B31>'User input'!F$21,"",(IF(E31>'User input'!L$11,(E31-'User input'!L$11)*'User input'!F$34+'User input'!J$11*'User input'!F$19*'User input'!F$32*('User input'!L$11/1000)^'User input'!K$11,'User input'!J$11*'User input'!F$19*'User input'!F$32*(E31/1000)^'User input'!K$11))*'User input'!F$33) ->  | Q31: =IF(B31>'User input'!F$21,"",IF(B31>0,(P31-P30),0)) ->  | R31: =IF(B31>'User input'!F$21,"",Q31/'User input'!F$22) ->  | S31: =IF(B31>'User input'!F$21,"",(J31+L31+O31+Q31)*('User input'!L$15+'User input'!L$16)-IF(B31='User input'!F$21,(F31-K31)*'User input'!L$15,0)) ->  | T31: =IF(B31>'User input'!F$21,"",L31+M31+N31+O31+Q31-S31) ->  | U31: =IF(B31>'User input'!F$21,"",C31*T31) -> 
B32: =IF(B31>='User input'!F$21,"",B31+1) ->  | C32: =IF(B32>'User input'!F$21,"",'User input'!F$38^B32) ->  | D32: =IF(B32>'User input'!F$21,"",IF(B32=0,'User input'!F$14,D31+1)) ->  | E32: =IF(B32>'User input'!F$21,"",IF(B32=0,'User input'!F$15,E31+'User input'!F$22)) ->  | F32: =IF(B32>'User input'!F$21,"",IF(F$57=1,F80,IF(F$57=2,H80,"Error"))) ->  | G32: =IF(B32>'User input'!F$21,"",IF(B32>0,F31*'User input'!L$13,0)) ->  | H32: =IF(B32>'User input'!F$21,"",IF(B32>0,F31-F32,0)) ->  | I32: =IF(B32>'User input'!F$21,"",IF(B32>7,0,IF(SUM(I$11:I31)<1,IF(B32='User input'!F$21,'User input'!L40/2,'User input'!L40),0))) ->  | J32: =IF(B32>'User input'!F$21,"",IF(B32=0,MIN('User input'!F$16,'User input'!L$17)+'User input'!L$19+'User input'!L$20*I32,'User input'!L$20*I32)) ->  | K32: =IF(B32>'User input'!F$21,"",IF(B32=0,'User input'!F$16-J32,K31-J32)) ->  | L32: =IF(B32>'User input'!F$21,"",IF(B32>0,('User input'!F$16-'User input'!F$18)*'User input'!L$13,0)) ->  | M32: =IF(B32>'User input'!F$21,"",IF(B32='User input'!F$21,'User input'!F$16-'User input'!F$18,0)) ->  | N32: =IF(B32>'User input'!F$21,"",IF(B32=0,'User input'!F$18,IF(B32='User input'!F$21,-F32,0))) ->  | O32: =IF(B32>'User input'!F$21,"",IF(B32>0,'User input'!F$35*F31,0)) ->  | P32: =IF(B32>'User input'!F$21,"",(IF(E32>'User input'!L$11,(E32-'User input'!L$11)*'User input'!F$34+'User input'!J$11*'User input'!F$19*'User input'!F$32*('User input'!L$11/1000)^'User input'!K$11,'User input'!J$11*'User input'!F$19*'User input'!F$32*(E32/1000)^'User input'!K$11))*'User input'!F$33) ->  | Q32: =IF(B32>'User input'!F$21,"",IF(B32>0,(P32-P31),0)) ->  | R32: =IF(B32>'User input'!F$21,"",Q32/'User input'!F$22) ->  | S32: =IF(B32>'User input'!F$21,"",(J32+L32+O32+Q32)*('User input'!L$15+'User input'!L$16)-IF(B32='User input'!F$21,(F32-K32)*'User input'!L$15,0)) ->  | T32: =IF(B32>'User input'!F$21,"",L32+M32+N32+O32+Q32-S32) ->  | U32: =IF(B32>'User input'!F$21,"",C32*T32) -> 
B35: * EOY = End of year | I35: =IF(OR('User input'!L30>1.01,'User input'!L30<0.99),"Total depreciation rate should add to 100%"," ") -> 
B36: ** TIS = Property tax, insurance, and shelter | I36: =IF(OR('User input'!L30>1.01,'User input'!L30<0.99),"Go back to User Input tab and check entered values!"," ") -> 
B51: Information to modify current depreciation formulas
B53: Age | G53: ='User input'!G11 -> -0.09371692293 | I53: 1980.286142
B54: 100 hours | G54: ='User input'!H11 -> -0.02817323696 | I54: -792.1695004
B55: Age x 100 hours | G55: ='User input'!I11 -> 0.001520471055 | I55: 0.001017557235
F57: 1 | G57: <= 1=original, 2=revised
J58: Trade
B59: Year | D59: Age | E59: Hours | F59: Original | G59: Depr | H59: Revised | I59: Depr | J59: diff | K59: SSE
B60: 0 | D60: =IF(B60=0,'User input'!F$14,D59+1) -> 0 | E60: =IF(B60=0,'User input'!F$15,E59+'User input'!F$22) -> 0 | F60: =EXP('User input'!G$11*(D60-'User input'!F$14)+'User input'!H$11*((E60-'User input'!F$15)/100)+'User input'!I$11*(D60-'User input'!F$14)*(E60-'User input'!F$15)/100)*'User input'!F$17*IF(B12=0,1,(1-'User input'!F$76)) -> 275000 | G60: =F$60-F60 -> 0 | H60: =EXP(I$53*($D60-'User input'!$F$14)+I$54*(($E60-'User input'!$F$15)/100)+I$55*($D60-'User input'!$F$14)*($E60-'User input'!$F$15)/100)*'User input'!$F$17*IF($B60=0,1,(1-#REF!)) -> 275000 | I60: =H$60-H60 -> 0 | K60: =SUM(K61:K80) -> 
B61: =+B60+1 -> 1 | D61: =IF(B61=0,'User input'!F$14,D60+1) -> 1 | E61: =IF(B61=0,'User input'!F$15,E60+'User input'!F$22) -> 250 | F61: =EXP('User input'!G$11*(D61-'User input'!F$14)+'User input'!H$11*((E61-'User input'!F$15)/100)+'User input'!I$11*(D61-'User input'!F$14)*(E61-'User input'!F$15)/100)*'User input'!F$17*IF(B13=0,1,(1-'User input'!F$76)) -> 234257.8098 | G61: 40742.19025 | H61: =EXP(I$53*($D61-'User input'!$F$14)+I$54*(($E61-'User input'!$F$15)/100)+I$55*($D61-'User input'!$F$14)*($E61-'User input'!$F$15)/100)*'User input'!$F$17*IF($B61=0,1,(1-#REF!)) ->  | I61: =F$60-H61 ->  | J61: 38000 | K61: =IF(J61=0,0,(I61-J61)^2) -> 
B62: =+B61+1 -> 2 | D62: =IF(B62=0,'User input'!F$14,D61+1) -> 2 | E62: =IF(B62=0,'User input'!F$15,E61+'User input'!F$22) -> 500 | F62: =EXP('User input'!G$11*(D62-'User input'!F$14)+'User input'!H$11*((E62-'User input'!F$15)/100)+'User input'!I$11*(D62-'User input'!F$14)*(E62-'User input'!F$15)/100)*'User input'!F$17*IF(B14=0,1,(1-'User input'!F$76)) -> 201074.5586 | G62: 73925.44141 | H62: =EXP(I$53*($D62-'User input'!$F$14)+I$54*(($E62-'User input'!$F$15)/100)+I$55*($D62-'User input'!$F$14)*($E62-'User input'!$F$15)/100)*'User input'!$F$17*IF($B62=0,1,(1-#REF!)) ->  | J62: 67000 | K62: =IF(J62=0,0,(I62-J62)^2) -> 
B63: 3 | D63: =IF(B63=0,'User input'!F$14,D62+1) -> 3 | E63: =IF(B63=0,'User input'!F$15,E62+'User input'!F$22) -> 750 | F63: =EXP('User input'!G$11*(D63-'User input'!F$14)+'User input'!H$11*((E63-'User input'!F$15)/100)+'User input'!I$11*(D63-'User input'!F$14)*(E63-'User input'!F$15)/100)*'User input'!F$17*IF(B15=0,1,(1-'User input'!F$76)) -> 173908.909 | G63: 101091.091 | H63: =EXP(I$53*($D63-'User input'!$F$14)+I$54*(($E63-'User input'!$F$15)/100)+I$55*($D63-'User input'!$F$14)*($E63-'User input'!$F$15)/100)*'User input'!$F$17*IF($B63=0,1,(1-#REF!)) ->  | J63: 88000
B64: 4 | D64: =IF(B64=0,'User input'!F$14,D63+1) -> 4 | E64: =IF(B64=0,'User input'!F$15,E63+'User input'!F$22) -> 1000 | F64: =EXP('User input'!G$11*(D64-'User input'!F$14)+'User input'!H$11*((E64-'User input'!F$15)/100)+'User input'!I$11*(D64-'User input'!F$14)*(E64-'User input'!F$15)/100)*'User input'!F$17*IF(B16=0,1,(1-'User input'!F$76)) -> 151561.2568 | G64: 123438.7432 | H64: =EXP(I$53*($D64-'User input'!$F$14)+I$54*(($E64-'User input'!$F$15)/100)+I$55*($D64-'User input'!$F$14)*($E64-'User input'!$F$15)/100)*'User input'!$F$17*IF($B64=0,1,(1-#REF!)) ->  | K64: 0
B65: 5 | D65: =IF(B65=0,'User input'!F$14,D64+1) -> 5 | E65: =IF(B65=0,'User input'!F$15,E64+'User input'!F$22) -> 1250 | F65: =EXP('User input'!G$11*(D65-'User input'!F$14)+'User input'!H$11*((E65-'User input'!F$15)/100)+'User input'!I$11*(D65-'User input'!F$14)*(E65-'User input'!F$15)/100)*'User input'!F$17*IF(B17=0,1,(1-'User input'!F$76)) -> 133093.3101 | G65: 141906.6899 | H65: =EXP(I$53*($D65-'User input'!$F$14)+I$54*(($E65-'User input'!$F$15)/100)+I$55*($D65-'User input'!$F$14)*($E65-'User input'!$F$15)/100)*'User input'!$F$17*IF($B65=0,1,(1-#REF!)) ->  | K65: 0
B66: 6 | D66: =IF(B66=0,'User input'!F$14,D65+1) -> 6 | E66: =IF(B66=0,'User input'!F$15,E65+'User input'!F$22) -> 1500 | F66: =EXP('User input'!G$11*(D66-'User input'!F$14)+'User input'!H$11*((E66-'User input'!F$15)/100)+'User input'!I$11*(D66-'User input'!F$14)*(E66-'User input'!F$15)/100)*'User input'!F$17*IF(B18=0,1,(1-'User input'!F$76)) -> 117767.6247 | G66: 157232.3753 | H66: =EXP(I$53*($D66-'User input'!$F$14)+I$54*(($E66-'User input'!$F$15)/100)+I$55*($D66-'User input'!$F$14)*($E66-'User input'!$F$15)/100)*'User input'!$F$17*IF($B66=0,1,(1-#REF!)) ->  | K66: 0
B67: 7 | D67: =IF(B67=0,'User input'!F$14,D66+1) -> 7 | E67: =IF(B67=0,'User input'!F$15,E66+'User input'!F$22) -> 1750 | F67: =EXP('User input'!G$11*(D67-'User input'!F$14)+'User input'!H$11*((E67-'User input'!F$15)/100)+'User input'!I$11*(D67-'User input'!F$14)*(E67-'User input'!F$15)/100)*'User input'!F$17*IF(B19=0,1,(1-'User input'!F$76)) -> 105001.9262 | G67: 169998.0738 | H67: =EXP(I$53*($D67-'User input'!$F$14)+I$54*(($E67-'User input'!$F$15)/100)+I$55*($D67-'User input'!$F$14)*($E67-'User input'!$F$15)/100)*'User input'!$F$17*IF($B67=0,1,(1-#REF!)) ->  | K67: 0
B68: 8 | D68: =IF(B68=0,'User input'!F$14,D67+1) -> 8 | E68: =IF(B68=0,'User input'!F$15,E67+'User input'!F$22) -> 2000 | F68: =EXP('User input'!G$11*(D68-'User input'!F$14)+'User input'!H$11*((E68-'User input'!F$15)/100)+'User input'!I$11*(D68-'User input'!F$14)*(E68-'User input'!F$15)/100)*'User input'!F$17*IF(B20=0,1,(1-'User input'!F$76)) -> 94334.44031 | G68: 180665.5597 | H68: =EXP(I$53*($D68-'User input'!$F$14)+I$54*(($E68-'User input'!$F$15)/100)+I$55*($D68-'User input'!$F$14)*($E68-'User input'!$F$15)/100)*'User input'!$F$17*IF($B68=0,1,(1-#REF!)) ->  | K68: 0
B69: 9 | D69: =IF(B69=0,'User input'!F$14,D68+1) -> 9 | E69: =IF(B69=0,'User input'!F$15,E68+'User input'!F$22) -> 2250 | F69: =EXP('User input'!G$11*(D69-'User input'!F$14)+'User input'!H$11*((E69-'User input'!F$15)/100)+'User input'!I$11*(D69-'User input'!F$14)*(E69-'User input'!F$15)/100)*'User input'!F$17*IF(B21=0,1,(1-'User input'!F$76)) -> 85397.45916 | G69: 189602.5408 | H69: =EXP(I$53*($D69-'User input'!$F$14)+I$54*(($E69-'User input'!$F$15)/100)+I$55*($D69-'User input'!$F$14)*($E69-'User input'!$F$15)/100)*'User input'!$F$17*IF($B69=0,1,(1-#REF!)) ->  | K69: 0
B70: 10 | D70: =IF(B70=0,'User input'!F$14,D69+1) -> 10 | E70: =IF(B70=0,'User input'!F$15,E69+'User input'!F$22) -> 2500 | F70: =EXP('User input'!G$11*(D70-'User input'!F$14)+'User input'!H$11*((E70-'User input'!F$15)/100)+'User input'!I$11*(D70-'User input'!F$14)*(E70-'User input'!F$15)/100)*'User input'!F$17*IF(B22=0,1,(1-'User input'!F$76)) -> 77897.09867 | G70: 197102.9013 | H70: =EXP(I$53*($D70-'User input'!$F$14)+I$54*(($E70-'User input'!$F$15)/100)+I$55*($D70-'User input'!$F$14)*($E70-'User input'!$F$15)/100)*'User input'!$F$17*IF($B70=0,1,(1-#REF!)) ->  | K70: 0
B71: 11 | D71: =IF(B71=0,'User input'!F$14,D70+1) -> 11 | E71: =IF(B71=0,'User input'!F$15,E70+'User input'!F$22) -> 2750 | F71: =EXP('User input'!G$11*(D71-'User input'!F$14)+'User input'!H$11*((E71-'User input'!F$15)/100)+'User input'!I$11*(D71-'User input'!F$14)*(E71-'User input'!F$15)/100)*'User input'!F$17*IF(B23=0,1,(1-'User input'!F$76)) -> 71597.73382 | G71: 203402.2662 | H71: =EXP(I$53*($D71-'User input'!$F$14)+I$54*(($E71-'User input'!$F$15)/100)+I$55*($D71-'User input'!$F$14)*($E71-'User input'!$F$15)/100)*'User input'!$F$17*IF($B71=0,1,(1-#REF!)) ->  | K71: 0
B72: 12 | D72: =IF(B72=0,'User input'!F$14,D71+1) -> 12 | E72: =IF(B72=0,'User input'!F$15,E71+'User input'!F$22) -> 3000 | F72: =EXP('User input'!G$11*(D72-'User input'!F$14)+'User input'!H$11*((E72-'User input'!F$15)/100)+'User input'!I$11*(D72-'User input'!F$14)*(E72-'User input'!F$15)/100)*'User input'!F$17*IF(B24=0,1,(1-'User input'!F$76)) -> 66309.98527 | G72: 208690.0147 | H72: =EXP(I$53*($D72-'User input'!$F$14)+I$54*(($E72-'User input'!$F$15)/100)+I$55*($D72-'User input'!$F$14)*($E72-'User input'!$F$15)/100)*'User input'!$F$17*IF($B72=0,1,(1-#REF!)) ->  | K72: 0
B73: 13 | D73: =IF(B73=0,'User input'!F$14,D72+1) -> 13 | E73: =IF(B73=0,'User input'!F$15,E72+'User input'!F$22) -> 3250 | F73: =EXP('User input'!G$11*(D73-'User input'!F$14)+'User input'!H$11*((E73-'User input'!F$15)/100)+'User input'!I$11*(D73-'User input'!F$14)*(E73-'User input'!F$15)/100)*'User input'!F$17*IF(B25=0,1,(1-'User input'!F$76)) -> 61881.41664 | G73: 213118.5834 | H73: =EXP(I$53*($D73-'User input'!$F$14)+I$54*(($E73-'User input'!$F$15)/100)+I$55*($D73-'User input'!$F$14)*($E73-'User input'!$F$15)/100)*'User input'!$F$17*IF($B73=0,1,(1-#REF!)) ->  | K73: 0
B74: 14 | D74: =IF(B74=0,'User input'!F$14,D73+1) -> 14 | E74: =IF(B74=0,'User input'!F$15,E73+'User input'!F$22) -> 3500 | F74: =EXP('User input'!G$11*(D74-'User input'!F$14)+'User input'!H$11*((E74-'User input'!F$15)/100)+'User input'!I$11*(D74-'User input'!F$14)*(E74-'User input'!F$15)/100)*'User input'!F$17*IF(B26=0,1,(1-'User input'!F$76)) -> 58189.31225 | G74: 216810.6877 | H74: =EXP(I$53*($D74-'User input'!$F$14)+I$54*(($E74-'User input'!$F$15)/100)+I$55*($D74-'User input'!$F$14)*($E74-'User input'!$F$15)/100)*'User input'!$F$17*IF($B74=0,1,(1-#REF!)) ->  | K74: 0
B75: 15 | D75: =IF(B75=0,'User input'!F$14,D74+1) -> 15 | E75: =IF(B75=0,'User input'!F$15,E74+'User input'!F$22) -> 3750 | F75: =EXP('User input'!G$11*(D75-'User input'!F$14)+'User input'!H$11*((E75-'User input'!F$15)/100)+'User input'!I$11*(D75-'User input'!F$14)*(E75-'User input'!F$15)/100)*'User input'!F$17*IF(B27=0,1,(1-'User input'!F$76)) -> 55135.06134 | G75: 219864.9387 | H75: =EXP(I$53*($D75-'User input'!$F$14)+I$54*(($E75-'User input'!$F$15)/100)+I$55*($D75-'User input'!$F$14)*($E75-'User input'!$F$15)/100)*'User input'!$F$17*IF($B75=0,1,(1-#REF!)) ->  | K75: 0
B76: 16 | D76: =IF(B76=0,'User input'!F$14,D75+1) -> 16 | E76: =IF(B76=0,'User input'!F$15,E75+'User input'!F$22) -> 4000 | F76: =EXP('User input'!G$11*(D76-'User input'!F$14)+'User input'!H$11*((E76-'User input'!F$15)/100)+'User input'!I$11*(D76-'User input'!F$14)*(E76-'User input'!F$15)/100)*'User input'!F$17*IF(B28=0,1,(1-'User input'!F$76)) -> 52639.79155 | G76: 222360.2085 | H76: =EXP(I$53*($D76-'User input'!$F$14)+I$54*(($E76-'User input'!$F$15)/100)+I$55*($D76-'User input'!$F$14)*($E76-'User input'!$F$15)/100)*'User input'!$F$17*IF($B76=0,1,(1-#REF!)) ->  | K76: 0
B77: 17 | D77: =IF(B77=0,'User input'!F$14,D76+1) -> 17 | E77: =IF(B77=0,'User input'!F$15,E76+'User input'!F$22) -> 4250 | F77: =EXP('User input'!G$11*(D77-'User input'!F$14)+'User input'!H$11*((E77-'User input'!F$15)/100)+'User input'!I$11*(D77-'User input'!F$14)*(E77-'User input'!F$15)/100)*'User input'!F$17*IF(B29=0,1,(1-'User input'!F$76)) -> 50640.98222 | G77: 224359.0178 | H77: =EXP(I$53*($D77-'User input'!$F$14)+I$54*(($E77-'User input'!$F$15)/100)+I$55*($D77-'User input'!$F$14)*($E77-'User input'!$F$15)/100)*'User input'!$F$17*IF($B77=0,1,(1-#REF!)) ->  | K77: 0
B78: 18 | D78: =IF(B78=0,'User input'!F$14,D77+1) -> 18 | E78: =IF(B78=0,'User input'!F$15,E77+'User input'!F$22) -> 4500 | F78: =EXP('User input'!G$11*(D78-'User input'!F$14)+'User input'!H$11*((E78-'User input'!F$15)/100)+'User input'!I$11*(D78-'User input'!F$14)*(E78-'User input'!F$15)/100)*'User input'!F$17*IF(B30=0,1,(1-'User input'!F$76)) -> 49089.85409 | G78: 225910.1459 | H78: =EXP(I$53*($D78-'User input'!$F$14)+I$54*(($E78-'User input'!$F$15)/100)+I$55*($D78-'User input'!$F$14)*($E78-'User input'!$F$15)/100)*'User input'!$F$17*IF($B78=0,1,(1-#REF!)) ->  | K78: 0
B79: 19 | D79: =IF(B79=0,'User input'!F$14,D78+1) -> 19 | E79: =IF(B79=0,'User input'!F$15,E78+'User input'!F$22) -> 4750 | F79: =EXP('User input'!G$11*(D79-'User input'!F$14)+'User input'!H$11*((E79-'User input'!F$15)/100)+'User input'!I$11*(D79-'User input'!F$14)*(E79-'User input'!F$15)/100)*'User input'!F$17*IF(B31=0,1,(1-'User input'!F$76)) -> 47949.38296 | G79: 227050.617 | H79: =EXP(I$53*($D79-'User input'!$F$14)+I$54*(($E79-'User input'!$F$15)/100)+I$55*($D79-'User input'!$F$14)*($E79-'User input'!$F$15)/100)*'User input'!$F$17*IF($B79=0,1,(1-#REF!)) ->  | K79: 0
B80: =+B79+1 -> 20 | D80: =IF(B80=0,'User input'!F$14,D79+1) -> 20 | E80: =IF(B80=0,'User input'!F$15,E79+'User input'!F$22) -> 5000 | F80: =EXP('User input'!G$11*(D80-'User input'!F$14)+'User input'!H$11*((E80-'User input'!F$15)/100)+'User input'!I$11*(D80-'User input'!F$14)*(E80-'User input'!F$15)/100)*'User input'!F$17*IF(B32=0,1,(1-'User input'!F$76)) -> 47192.82392 | G80: 227807.1761 | H80: =EXP(I$53*($D80-'User input'!$F$14)+I$54*(($E80-'User input'!$F$15)/100)+I$55*($D80-'User input'!$F$14)*($E80-'User input'!$F$15)/100)*'User input'!$F$17*IF($B80=0,1,(1-#REF!)) ->  | J80: 235000
K83: =K60 -> 

Sheet Analysis summary
B2: Combine analysis summary section
B4: Analysis highlights:
B5: Combine class used | F5: =VLOOKUP('User input'!F13,'User input'!B7:J10,2) -> JD 9670STS (spread 8r corn 30' rigid)
B7: Combine purchase price | F7: ='User input'!F16 -> 275000
B8: Combine age when purchased | F8: ='User input'!F14 -> 0
B9: Hours on combine when purchased | F9: ='User input'!F15 -> 0
B10: Hours used per year | F10: ='User input'!F22 -> 250
B11: Total acres harvested per year | F11: ='User input'!F22*'User input'!F23 -> 3000
B12: Number of years combine is used | F12: ='User input'!F21 -> 5
B13: Combine value when sold | F13: =-MIN('Time and Tax (TT)'!N12:N32) -> 133093.3101
B14: Accumulated repairs over lifetime | F14: =MAX('Time and Tax (TT)'!P12:P32) -> 20211.63994
B17: Cost breakdown:
F18: $/year | G18: $/hour | H18: $/acre
C19: Opportunity interest | F19: ='User input'!L35 -> 9326.815061 | G19: =F19/F$10 -> 37.30726024 | H19: =F19/F$11 -> 3.108938354
C20: Market depreciation | F20: ='User input'!L36 -> 25631.5035 | G20: =F20/F$10 -> 102.526014 | H20: =F20/F$11 -> 8.543834499
C21: Repair and maintenance | F21: ='User input'!L37 -> 3508.061119 | G21: =F21/F$10 -> 14.03224447 | H21: 1.169353706
C22: Tax, insurance, & shelter (TIS) | F22: ='User input'!L38 -> 2798.044518 | G22: =F22/F$10 -> 11.19217807 | H22: =F22/F$11 -> 0.9326815061
B23: SUBTOTAL1 | F23: =SUM(F19:F22) -> 41264.4242 | G23: =SUM(G19:G22) -> 165.0576968 | H23: =SUM(H19:H22) -> 13.75480807
C25: Labor | F25: ='User input'!F22/'User input'!F77*'User input'!F25*'User input'!F26 -> 6696.428571 | G25: =F25/F$10 -> 26.78571429 | H25: 2.232142857
C26: Fuel and lubrication | F26: ='User input'!F22/'User input'!F77*'User input'!F28*'User input'!F29*(1+'User input'!F30) -> 10165.17857 | G26: =F26/F$10 -> 40.66071429 | H26: 3.388392857
B27: SUBTOTAL | F27: =SUM(F25:F26) -> 16861.60714 | G27: =SUM(G25:G26) -> 67.44642857 | H27: =SUM(H25:H26) -> 5.620535714
B29: Total for combine | F29: =F23+F27 -> 58126.03134 | G29: =G23+G27 -> 232.5041254 | H29: =H23+H27 -> 19.37534378
B31: 1 Can be compared to combine rental rates if labor and fuel & lubrication are excluded.
B33: Date of analysis =====> | E33: =NOW() -> 2016-06-29T10:31:37.400
